bitfinex-derivatives/quotes_BNBF0:USTF0_20250710
["timestamp","ask_amount","ask_price","bid_price","bid_amount"]
[1752133950472,0.98498784,671.9,671.42,1.555]
[1752133950674,0.98498784,671.89,671.42,1.555]
[1752133950874,0.98498784,671.88,671.42,1.555]
[1752133951074,0.98498784,671.87,671.42,1.555]
[1752133951279,0.98498784,671.86,671.42,1.555]
[1752133951580,0.98498784,671.9,671.42,1.555]
[1752133951878,0.98498784,671.89,671.42,1.555]
[1752133952075,0.98498784,671.88,671.42,1.555]
[1752133952280,0.98498784,671.87,671.42,1.555]
[1752133952478,0.98498784,671.86,671.42,1.555]
[1752133952675,0.98498784,671.9,671.42,1.555]
[1752133952975,0.98498784,671.89,671.42,1.555]
[1752133953179,0.98498784,671.88,671.42,1.555]
[1752133953379,0.98498784,671.87,671.42,1.555]
[1752133953580,0.98498784,671.86,671.42,1.555]
[1752133953777,0.98498784,671.85,671.42,1.555]
[1752133954080,0.98498784,671.89,671.42,1.555]
[1752133954277,0.98498784,671.88,671.42,1.555]
[1752133954478,0.98498784,671.87,671.42,1.555]
[1752133954680,0.98498784,671.86,671.42,1.555]
[1752133954877,0.98498784,671.85,671.42,1.555]
[1752133955080,0.98498784,671.84,671.42,1.555]
[1752133955276,0.98498784,671.88,671.42,1.555]
[1752133955478,0.98498784,671.87,671.42,1.555]
[1752133955778,0.98498784,671.86,671.42,1.555]
[1752133955977,1.6720642,671.89,671.42,1.555]
[1752133955978,0.98498784,671.85,671.42,1.555]
[1752133956178,0.98498784,671.84,671.42,1.555]
[1752133956381,0.98498784,671.88,671.42,1.555]
[1752133956579,0.98498784,671.87,671.42,1.555]
[1752133956781,1.6720642,671.89,671.42,1.555]
[1752133956782,0.98498784,671.86,671.42,1.555]
[1752133957082,0.98498784,671.85,671.42,1.555]
[1752133957282,0.98498784,671.84,671.42,1.555]
[1752133957481,0.98498784,671.88,671.42,1.555]
[1752133957680,0.98498784,671.87,671.42,1.555]
[1752133957883,0.98498784,671.86,671.42,1.555]
[1752133958087,0.98498784,671.85,671.42,1.555]
[1752133958282,0.98498784,671.84,671.42,1.555]
[1752133958483,0.98498784,671.83,671.42,1.555]
[1752133958686,0.98498784,671.87,671.42,1.555]
[1752133958884,0.98498784,671.86,671.42,1.555]
[1752133959182,0.98498784,671.85,671.42,1.555]
[1752133959386,0.98498784,671.84,671.42,1.555]
[1752133959586,0.98498784,671.83,671.42,1.555]
[1752133959886,0.98498784,671.87,671.42,1.555]
[1752133960186,0.98498784,671.86,671.42,1.555]
[1752133960386,0.98498784,671.85,671.42,1.555]
[1752133960584,0.98498784,671.84,671.42,1.555]
[1752133960787,0.98498784,671.83,671.42,1.555]
[1752133961087,0.98498784,671.87,671.42,1.555]
[1752133961286,0.98498784,671.86,671.42,1.555]
[1752133961488,0.98498784,671.85,671.42,1.555]
[1752133961686,0.98498784,671.84,671.42,1.555]
[1752133961885,0.98498784,671.83,671.42,1.555]
[1752133962189,0.98498784,671.87,671.42,1.555]
[1752133962385,0.98498784,671.86,671.4,1.66772584]
[1752133962587,0.98498784,671.85,671.4,1.66772584]
[1752133962786,0.98498784,671.84,671.4,1.66772584]
[1752133962988,0.98498784,671.83,671.4,1.66772584]
[1752133963191,0.98498784,671.87,671.4,1.66772584]
[1752133963490,0.98498784,671.86,671.4,1.66772584]
[1752133963687,0.98498784,671.85,671.4,1.66772584]
[1752133963987,0.98498784,671.84,671.4,1.66772584]
[1752133964191,0.98498784,671.83,671.43,1.66772584]
[1752133964387,0.98498784,671.82,671.43,1.66772584]
[1752133964587,0.25906157,671.95,671.44,1.948]
[1752133964588,0.98498784,671.85,671.44,1.948]
[1752133964788,0.98498784,671.84,671.44,1.948]
[1752133964991,0.98498784,671.83,671.44,1.948]
[1752133965190,0.98498784,671.82,671.44,1.948]
[1752133965393,0.98498784,671.86,671.44,1.948]
[1752133965592,0.98498784,671.85,671.44,1.948]
[1752133965793,0.98498784,671.84,671.44,1.948]
[1752133965991,0.98498784,671.83,671.44,1.948]
[1752133966193,0.98498784,671.82,671.44,1.948]
[1752133966393,0.98521411,671.86,671.44,1.948]
[1752133966691,0.98521411,671.85,671.44,1.948]
[1752133966890,0.98521411,671.84,671.44,1.948]
[1752133967092,0.98521411,671.83,671.44,1.948]
[1752133967293,0.98521411,671.87,671.44,1.948]
[1752133967492,0.98521411,671.86,671.44,1.948]
[1752133967694,0.98521411,671.85,671.44,1.948]
[1752133967996,0.98521411,671.84,671.44,1.948]
[1752133968196,0.98521411,671.83,671.44,1.948]
[1752133968396,0.98521411,671.86,671.44,1.948]
[1752133968595,0.98521411,671.85,671.44,1.948]
[1752133968897,0.98521411,671.84,671.44,1.948]
[1752133969095,0.98521411,671.83,671.44,1.948]
[1752133969292,0.98521411,671.82,671.44,1.948]
[1752133969494,0.98521411,671.87,671.44,1.948]
[1752133969697,0.98521411,671.86,671.44,1.948]
[1752133969895,0.98521411,671.85,671.44,1.948]
[1752133970196,0.98521411,671.87,671.44,1.948]
[1752133970398,0.98521411,671.86,671.44,1.948]
[1752133970699,0.98521411,671.9,671.44,1.948]
[1752133970895,0.98521411,671.89,671.44,1.948]
[1752133971099,0.98521411,671.88,671.44,1.948]
[1752133971297,0.98521411,671.87,671.44,1.948]
[1752133971501,0.98521411,671.86,671.44,1.948]
[1752133971795,0.98521411,671.9,671.44,1.948]
[1752133972000,0.98521411,671.89,671.44,1.948]
[1752133972297,0.98521411,671.88,671.44,1.948]
[1752133972498,0.98521411,671.87,671.44,1.948]
[1752133972796,0.98521411,671.86,671.44,1.948]
[1752133973000,0.98521411,671.9,671.44,1.948]
[1752133973200,0.98528437,671.89,671.44,1.948]
[1752133973401,0.98528437,671.88,671.44,1.948]
[1752133973697,0.98528437,671.87,671.44,1.948]
[1752133973900,0.98528437,671.86,671.44,1.948]
[1752133974099,0.98528437,671.9,671.44,1.948]
[1752133974300,0.98528437,671.89,671.44,1.948]
[1752133974501,0.98528437,671.88,671.44,1.948]
[1752133974701,0.98528437,671.87,671.44,1.948]
[1752133974898,0.98528437,671.86,671.44,1.948]
[1752133975201,0.98528437,671.85,671.44,1.948]
[1752133975401,0.98555992,671.9,671.44,1.948]
[1752133975597,0.98555992,671.89,671.44,1.948]
[1752133975801,0.98555992,671.88,671.44,1.948]
[1752133975997,0.98555992,671.87,671.44,1.948]
[1752133976298,1.6720642,671.92,671.44,1.948]
[1752133976299,0.98555992,671.86,671.44,1.948]
[1752133976598,0.98555992,671.91,671.44,1.948]
[1752133976799,0.98555992,671.9,671.44,1.948]
[1752133976999,0.98555992,671.89,671.44,1.948]
[1752133977199,0.98555992,671.88,671.44,1.948]
[1752133977400,1.6720642,671.92,671.44,1.948]
[1752133977401,0.98555992,671.87,671.44,1.948]
[1752133977702,0.98555992,671.91,671.44,1.948]
[1752133977901,0.98555992,671.9,671.44,1.948]
[1752133978199,0.98555992,671.89,671.44,1.948]
[1752133978398,0.98555992,671.88,671.44,1.948]
[1752133978596,0.98555992,671.87,671.44,1.948]
[1752133978800,0.98555992,671.86,671.44,1.948]
[1752133979001,0.98555992,671.91,671.44,1.948]
[1752133979199,0.98555992,671.9,671.44,1.948]
[1752133979403,0.98555992,671.89,671.44,1.948]
[1752133979703,0.98555992,671.88,671.44,1.948]
[1752133979903,0.98555992,671.87,671.44,1.948]
[1752133980100,0.98555992,671.86,671.44,1.948]
[1752133980401,2.65762412,671.91,671.44,1.948]
[1752133980603,0.98555992,671.9,671.44,1.948]
[1752133980800,0.98555992,671.89,671.44,1.948]
[1752133981101,0.98555992,671.88,671.44,1.948]
[1752133981304,0.98555992,671.87,671.44,1.948]
[1752133981602,1.6720642,671.91,671.44,1.948]
[1752133981603,0.98555992,671.86,671.44,1.948]
[1752133981804,0.98555992,671.85,671.44,1.948]
[1752133981999,0.98555992,671.9,671.44,1.948]
[1752133982304,0.98555992,671.89,671.44,1.948]
[1752133982505,0.98555992,671.88,671.44,1.948]
[1752133982700,0.98555992,671.87,671.44,1.948]
[1752133982899,0.98555992,671.86,671.44,1.948]
[1752133983103,0.98555992,671.85,671.44,1.948]
[1752133983302,0.98555992,671.9,671.44,1.948]
[1752133983602,0.98555992,671.89,671.44,1.948]
[1752133983804,0.98555992,671.88,671.44,1.948]
[1752133984100,0.98555992,671.87,671.44,1.948]
[1752133984302,0.98555992,671.86,671.44,1.948]
[1752133984503,0.98555992,671.9,671.44,1.948]
[1752133984704,0.98555992,671.89,671.44,1.948]
[1752133984900,0.98555992,671.88,671.44,1.948]
[1752133985106,0.98555992,671.87,671.44,1.948]
[1752133985405,0.98555992,671.86,671.44,1.948]
[1752133985701,0.98555992,671.85,671.44,1.948]
[1752133985904,0.98555992,671.89,671.44,1.948]
[1752133986102,0.98555992,671.88,671.44,1.948]
[1752133986302,0.98555992,671.87,671.44,1.948]
[1752133986501,0.98555992,671.86,671.44,1.948]
[1752133986703,0.98555992,671.85,671.44,1.948]
[1752133986901,0.98555992,671.84,671.44,1.948]
[1752133987201,0.98555992,671.88,671.44,1.948]
[1752133987400,0.98555992,671.87,671.44,1.948]
[1752133987604,0.98555992,671.86,671.44,1.948]
[1752133987902,0.98555992,671.85,671.44,1.948]
[1752133988104,0.98555992,671.84,671.44,1.948]
[1752133988301,0.98555992,671.83,671.44,1.948]
[1752133988503,0.98555992,671.88,671.44,1.948]
[1752133988701,0.98555992,671.87,671.44,1.948]
[1752133988904,0.98555992,671.86,671.44,1.948]
[1752133989205,0.98555992,671.85,671.44,1.948]
[1752133989401,0.98555992,671.84,671.44,1.948]
[1752133989602,0.98555992,671.83,671.44,1.948]
[1752133989902,0.98555992,671.82,671.44,1.948]
[1752133990103,0.98555992,671.87,671.44,1.948]
[1752133990303,0.98555992,671.86,671.44,1.948]
[1752133990500,1.6720642,671.88,671.44,1.948]
[1752133990501,0.98555992,671.85,671.44,1.948]
[1752133990802,0.98555992,671.84,671.44,1.948]
[1752133991103,0.98555992,671.83,671.44,1.948]
[1752133991403,0.98555992,671.82,671.44,1.948]
[1752133991600,0.98555992,671.81,671.44,1.948]
[1752133991901,0.98555992,671.86,671.44,1.948]
[1752133992103,0.98555992,671.85,671.44,1.948]
[1752133992403,0.98555992,671.84,671.44,1.948]
[1752133992602,0.98555992,671.83,671.44,1.948]
[1752133992802,0.98555992,671.82,671.44,1.948]
[1752133993001,0.98555992,671.81,671.44,1.948]
[1752133993213,0.98555992,671.86,671.44,1.948]
[1752133993410,1.6720642,671.87,671.44,1.948]
[1752133993411,0.98555992,671.85,671.44,1.948]
[1752133993611,0.98555992,671.84,671.44,1.948]
[1752133993809,0.98555992,671.83,671.42,1.66772584]
[1752133994009,0.98555992,671.82,671.42,1.66772584]
[1752133994213,0.98555992,671.81,671.42,1.66772584]
[1752133994409,1.6720642,671.86,671.42,1.66772584]
[1752133994410,0.98555992,671.85,671.42,1.66772584]
[1752133994610,0.98555992,671.84,671.42,1.66772584]
[1752133994812,0.98555992,671.83,671.42,1.66772584]
[1752133995012,0.98555992,671.82,671.42,1.66772584]
[1752133995215,0.98555992,671.81,671.42,1.66772584]
[1752133995413,0.98555992,671.85,671.42,1.66772584]
[1752133995619,0.98555992,671.84,671.42,1.66772584]
[1752133995915,0.98555992,671.83,671.43,1.32]
[1752133996119,0.98555992,671.82,671.43,2.98772584]
[1752133996415,0.98555992,671.81,671.43,2.98772584]
[1752133996622,0.98555992,671.8,671.43,2.98772584]
[1752133996815,0.98555992,671.85,671.43,2.98772584]
[1752133997115,0.98555992,671.84,671.43,2.98772584]
[1752133997315,0.98555992,671.83,671.43,2.98772584]
[1752133997618,0.98555992,671.82,671.43,2.98772584]
[1752133997914,0.98555992,671.81,671.43,2.98772584]
[1752133998121,0.98555992,671.8,671.43,2.98772584]
[1752133998315,0.98555992,671.85,671.43,2.98772584]
[1752133998520,0.98555992,671.84,671.43,2.98772584]
[1752133998719,0.98555992,671.83,671.43,2.98772584]
[1752133998917,0.98555992,671.82,671.43,2.98772584]
[1752133999215,0.98555992,671.81,671.43,2.98772584]
[1752133999413,0.98555992,671.8,671.43,2.98772584]
[1752133999619,1.6720642,671.86,671.43,2.98772584]
[1752133999820,2.65775542,671.85,671.44,1.66772584]
[1752134000015,0.98569122,671.84,671.44,1.66772584]
[1752134000216,0.98569122,671.83,671.44,1.66772584]
[1752134000416,0.98569122,671.82,671.44,1.66772584]
[1752134000716,0.98569122,671.81,671.44,1.66772584]
[1752134001016,0.98569122,671.8,671.44,1.66772584]
[1752134001216,1.6720642,671.85,671.44,1.66772584]
[1752134001415,0.98572113,671.84,671.44,1.66772584]
[1752134001619,0.98572113,671.83,671.44,1.66772584]
[1752134001816,0.98572113,671.82,671.44,1.66772584]
[1752134002017,0.98572113,671.81,671.44,1.66772584]
[1752134002216,0.98572113,671.8,671.44,1.66772584]
[1752134002416,1.6720642,671.85,671.44,1.66772584]
[1752134002616,0.98573891,671.84,671.44,1.66772584]
[1752134002815,0.98573891,671.83,671.44,1.66772584]
[1752134003020,0.98573891,671.82,671.44,1.66772584]
[1752134003218,0.98573891,671.81,671.44,1.66772584]
[1752134003417,0.98573891,671.8,671.44,1.66772584]
[1752134003617,1.6720642,671.85,671.44,1.66772584]
[1752134003818,0.98575934,671.84,671.44,1.66772584]
[1752134004117,0.98575934,671.83,671.44,1.66772584]
[1752134004320,0.98575934,671.82,671.43,2.98772584]
[1752134004619,0.98575934,671.81,671.43,2.98772584]
[1752134004820,0.98575934,671.8,671.43,2.98772584]
[1752134005017,1.6720642,671.85,671.43,2.98772584]
[1752134005221,0.98598153,671.84,671.43,2.98772584]
[1752134005419,0.98598153,671.83,671.43,2.98772584]
[1752134005617,0.98598153,671.82,671.43,1.32]
[1752134005919,0.98598153,671.81,671.43,1.32]
[1752134006220,0.98598153,671.8,671.43,1.32]
[1752134006419,0.98598153,671.85,671.43,1.32]
[1752134006619,0.98598153,671.84,671.43,1.32]
[1752134006921,0.98602022,671.83,671.43,1.32]
[1752134007120,0.98602022,671.82,671.43,1.32]
[1752134007320,0.98602022,671.81,671.43,2.98772584]
[1752134007618,0.98602022,671.8,671.43,2.98772584]
[1752134007819,0.98602022,671.79,671.43,2.98772584]
[1752134008122,0.98609747,671.84,671.43,2.98772584]
[1752134008422,0.98609747,671.83,671.43,2.98772584]
[1752134008722,0.98609747,671.82,671.43,2.98772584]
[1752134008923,0.98609747,671.81,671.43,2.98772584]
[1752134009121,0.98609747,671.8,671.43,2.98772584]
[1752134009321,1.6720642,671.85,671.43,2.98772584]
[1752134009524,0.98609587,671.84,671.43,2.98772584]
[1752134009722,0.98609587,671.83,671.43,2.98772584]
[1752134009919,0.98609587,671.82,671.43,2.98772584]
[1752134010119,0.98609587,671.81,671.43,1.66772584]
[1752134010323,0.98609587,671.8,671.43,1.66772584]
[1752134010523,1.6720642,671.85,671.43,1.66772584]
[1752134010722,0.98609504,671.84,671.43,1.66772584]
[1752134011019,0.98609504,671.83,671.43,1.66772584]
[1752134011223,0.98609504,671.82,671.43,1.66772584]
[1752134011423,0.98609504,671.81,671.43,1.66772584]
[1752134011624,0.98609504,671.8,671.43,1.66772584]
[1752134011823,1.6720642,671.85,671.43,1.66772584]
[1752134012022,0.98609427,671.84,671.43,1.66772584]
[1752134012221,0.98609427,671.83,671.43,1.66772584]
[1752134012425,0.98609427,671.82,671.43,1.66772584]
[1752134012622,0.98609427,671.81,671.44,1.559]
[1752134012821,0.98609427,671.8,671.44,1.559]
[1752134013026,1.6720642,671.85,671.44,1.559]
[1752134013225,0.9860935,671.84,671.44,1.559]
[1752134013426,0.9860935,671.83,671.44,1.559]
[1752134013625,0.9860935,671.82,671.44,1.559]
[1752134013922,0.25906157,671.95,671.44,1.559]
[1752134022734,0.9860935,671.94,671.44,1.559]
[1752134022936,0.9860935,671.93,671.44,1.559]
[1752134023136,0.9860935,671.92,671.44,1.559]
[1752134023337,0.9860935,671.94,671.44,1.559]
[1752134023536,0.9860935,671.93,671.44,1.559]
[1752134023738,0.9860935,671.94,671.44,1.559]
[1752134023937,0.9860935,671.93,671.44,1.559]
[1752134024136,0.9860935,671.94,671.44,1.559]
[1752134024335,0.9860935,671.93,671.44,1.559]
[1752134024535,0.9860935,671.94,671.44,1.559]
[1752134024837,0.9860935,671.93,671.44,1.559]
[1752134025046,0.9860935,671.94,671.44,1.559]
[1752134025438,0.9860935,671.93,671.44,1.559]
[1752134025639,0.9860935,671.94,671.44,1.559]
[1752134025937,0.9860935,671.93,671.44,1.559]
[1752134026138,0.9860935,671.94,671.44,1.559]
[1752134026338,0.9860935,671.93,671.44,1.559]
[1752134026542,0.9860935,671.94,671.44,1.559]
[1752134026737,0.9860935,671.93,671.44,1.559]
[1752134026940,0.9860935,671.94,671.44,1.559]
[1752134028940,0.25906157,671.95,671.44,1.559]
[1752134029841,1.93112577,671.95,671.44,1.559]
[1752134031445,0.25906157,671.95,671.44,1.559]
[1752134032544,0.9860935,671.94,671.44,1.559]
[1752134032844,0.9860935,671.93,671.44,1.559]
[1752134033048,0.9860935,671.92,671.44,1.559]
[1752134033249,0.9860935,671.94,671.44,1.559]
[1752134033448,0.9860935,671.93,671.44,1.559]
[1752134033648,0.9860935,671.92,671.44,1.559]
[1752134033849,0.9860935,671.94,671.44,1.559]
[1752134034051,0.9860935,671.93,671.44,1.559]
[1752134034349,0.9860935,671.92,671.44,1.559]
[1752134034549,0.9860935,671.94,671.44,1.559]
[1752134034745,0.9860935,671.93,671.44,1.559]
[1752134035045,0.9860935,671.92,671.44,1.559]
[1752134035250,0.9860935,671.94,671.44,1.559]
[1752134035452,0.9860935,671.93,671.44,1.559]
[1752134035650,0.9860935,671.92,671.44,1.559]
[1752134035850,0.9860935,671.94,671.44,1.559]
[1752134036053,0.9860935,671.93,671.44,1.559]
[1752134036252,0.9860935,671.92,671.44,1.559]
[1752134036452,0.9860935,671.94,671.44,1.559]
[1752134036653,0.9860935,671.93,671.44,1.559]
[1752134036949,0.9860935,671.92,671.33,1.66772584]
[1752134037254,2.6581577,671.94,671.33,1.66772584]
[1752134037448,0.9860935,671.93,671.33,1.66772584]
[1752134037650,0.9860935,671.92,671.33,1.66772584]
[1752134037850,0.9860935,671.93,671.33,1.66772584]
[1752134038052,0.9860935,671.92,671.33,1.66772584]
[1752134038249,0.9860935,671.91,671.33,1.66772584]
[1752134038548,0.9860935,671.93,671.34,1.66772584]
[1752134038751,0.9860935,671.92,671.34,1.66772584]
[1752134038950,0.9860935,671.91,671.35,1.66772584]
[1752134039152,0.9860935,671.9,671.37,1.66772584]
[1752134039450,0.9860935,671.89,671.37,1.66772584]
[1752134039651,0.9860935,671.91,671.37,1.66772584]
[1752134039848,0.9860935,671.9,671.37,1.66772584]
[1752134040051,1.6720642,671.92,671.37,1.66772584]
[1752134040052,0.9860935,671.89,671.37,1.66772584]
[1752134040253,0.9860935,671.91,671.37,1.66772584]
[1752134040454,0.9860935,671.9,671.37,1.66772584]
[1752134040654,0.9860935,671.89,671.37,1.66772584]
[1752134040858,0.9860935,671.91,671.38,1.591]
[1752134041056,0.9860935,671.9,671.38,1.591]
[1752134041258,0.9860935,671.89,671.4,1.66772584]
[1752134041553,0.9860935,671.88,671.4,1.66772584]
[1752134041759,0.98443116,671.94,671.38,1.591]
[1752134046662,1.24349273,671.95,671.38,1.591]
[1752134046863,0.25906157,671.95,671.38,1.591]
[1752134047058,1.24349273,671.95,671.38,1.591]
[1752134047257,0.25906157,671.95,671.38,1.591]
[1752134047760,1.24349273,671.95,671.38,1.591]
[1752134047959,0.25906157,671.95,671.38,1.591]
[1752134048464,1.24349273,671.95,671.38,1.591]
[1752134048664,0.25906157,671.95,671.38,1.591]
[1752134049064,1.24349273,671.95,671.38,1.591]
[1752134049262,0.25906157,671.95,671.38,1.591]
[1752134049765,1.24349273,671.95,671.38,1.591]
[1752134049965,0.25906157,671.95,671.38,1.591]
[1752134050466,1.24349273,671.95,671.38,1.591]
[1752134050662,0.25906157,671.95,671.38,1.591]
[1752134051063,1.24349273,671.95,671.38,1.591]
[1752134051262,2.65649536,671.94,671.38,1.591]
[1752134051464,0.98443116,671.93,671.38,1.591]
[1752134051666,0.98443116,671.92,671.38,1.591]
[1752134051963,0.98443116,671.91,671.38,1.591]
[1752134052167,0.98443116,671.9,671.38,1.591]
[1752134052467,0.98443116,671.91,671.38,1.591]
[1752134052763,0.98443116,671.9,671.38,1.591]
[1752134053064,0.98443116,671.89,671.38,1.591]
[1752134053266,0.98443116,671.91,671.38,1.591]
[1752134053466,0.98443116,671.9,671.38,1.591]
[1752134053663,0.98443116,671.92,671.38,1.591]
[1752134053862,0.98443116,671.91,671.38,1.591]
[1752134054065,0.98443116,671.9,671.38,1.591]
[1752134054264,0.98443116,671.92,671.38,1.591]
[1752134054467,0.98443116,671.91,671.38,1.591]
[1752134054672,0.98443116,671.9,671.38,1.591]
[1752134054967,0.98443116,671.92,671.38,1.591]
[1752134055167,0.98443116,671.91,671.38,1.591]
[1752134055363,0.98443116,671.93,671.38,1.591]
[1752134055569,0.98443116,671.92,671.38,1.591]
[1752134055766,0.25906157,671.95,671.38,1.591]
[1752134055767,0.98443116,671.91,671.38,1.591]
[1752134055966,0.98443116,671.9,671.38,1.591]
[1752134056165,1.6720642,671.93,671.38,1.591]
[1752134056166,0.98443116,671.92,671.38,1.591]
[1752134056364,0.98443116,671.91,671.38,1.591]
[1752134056568,0.98443116,671.9,671.38,1.591]
[1752134056764,0.98443116,671.89,671.38,1.591]
[1752134056964,0.98443116,671.88,671.38,1.591]
[1752134057170,2.65649536,671.91,671.38,1.591]
[1752134057368,0.98443116,671.9,671.38,1.591]
[1752134057566,0.98443116,671.89,671.38,1.591]
[1752134057868,0.98443116,671.88,671.38,1.591]
[1752134058168,2.65649536,671.91,671.38,1.591]
[1752134058366,0.98443116,671.9,671.38,1.591]
[1752134058568,0.98443116,671.89,671.38,1.591]
[1752134058867,0.98443116,671.88,671.38,1.591]
[1752134059064,0.98443116,671.9,671.38,1.591]
[1752134059269,0.98443116,671.89,671.38,1.591]
[1752134059466,0.98443116,671.88,671.38,1.591]
[1752134059667,0.98443116,671.9,671.38,1.591]
[1752134059866,0.98443116,671.89,671.38,1.591]
[1752134060168,0.98443116,671.88,671.38,1.591]
[1752134060363,0.98443116,671.9,671.38,1.591]
[1752134060571,0.98443116,671.89,671.38,1.591]
[1752134060866,0.98443116,671.88,671.38,1.591]
[1752134061064,0.98443116,671.9,671.38,1.591]
[1752134061263,1.6720642,671.91,671.38,1.591]
[1752134061264,0.98443116,671.89,671.38,1.591]
[1752134061464,0.98443116,671.88,671.38,3.25872584]
[1752134061767,0.98443116,671.87,671.38,3.25872584]
[1752134061964,0.98443116,671.9,671.38,3.25872584]
[1752134062168,0.98443116,671.89,671.38,3.25872584]
[1752134062365,0.98443116,671.88,671.38,3.25872584]
[1752134062569,1.6720642,671.91,671.38,3.25872584]
[1752134062570,0.98443116,671.87,671.38,3.25872584]
[1752134062864,1.6720642,671.91,671.38,3.25872584]
[1752134062865,0.98443116,671.9,671.38,3.25872584]
[1752134063066,0.98443116,671.89,671.38,3.25872584]
[1752134063271,0.98443116,671.88,671.38,3.25872584]
[1752134063567,0.98443116,671.87,671.39,1.66772584]
[1752134063767,0.98443116,671.86,671.39,1.66772584]
[1752134063966,0.98443116,671.88,671.39,1.66772584]
[1752134064268,0.98443116,671.87,671.39,1.66772584]
[1752134064567,0.98443116,671.86,671.39,1.66772584]
[1752134064870,0.98443116,671.88,671.4,1.66772584]
[1752134065168,0.98443116,671.87,671.4,1.66772584]
[1752134065369,0.98443116,671.86,671.4,1.66772584]
[1752134065568,0.98443116,671.88,671.4,1.66772584]
[1752134065768,0.98443116,671.87,671.4,1.66772584]
[1752134065968,0.98443116,671.86,671.4,1.66772584]
[1752134066170,1.6720642,671.89,671.4,1.66772584]
[1752134066171,0.98443116,671.88,671.4,1.66772584]
[1752134066371,0.98443116,671.87,671.4,1.66772584]
[1752134066569,0.98443116,671.86,671.4,1.66772584]
[1752134066770,0.98443116,671.88,671.4,1.66772584]
[1752134066971,0.98443116,671.88,671.41,1.66772584]
[1752134066972,0.98443116,671.87,671.41,1.66772584]
[1752134067174,0.98443116,671.86,671.41,1.66772584]
[1752134067375,0.98443116,671.87,671.4,1.66772584]
[1752134067574,0.98443116,671.86,671.4,1.66772584]
[1752134067771,0.98443116,671.85,671.4,1.66772584]
[1752134068074,0.98443116,671.88,671.4,1.66772584]
[1752134068278,0.98443116,671.87,671.4,1.66772584]
[1752134068472,0.98443116,671.86,671.4,1.66772584]
[1752134068676,0.98443116,671.85,671.41,1.66772584]
[1752134068877,0.98443116,671.87,671.38,3.25872584]
[1752134069076,0.98443116,671.89,671.38,3.25872584]
[1752134069279,0.98443116,671.88,671.38,3.25872584]
[1752134069478,0.98443116,671.87,671.38,3.25872584]
[1752134069774,0.98443116,671.89,671.38,3.25872584]
[1752134070077,0.98443116,671.88,671.38,3.25872584]
[1752134070278,0.98443116,671.87,671.38,3.25872584]
[1752134070476,0.98443116,671.89,671.38,3.25872584]
[1752134070776,0.98443116,671.88,671.38,3.25872584]
[1752134070975,0.98443116,671.87,671.38,3.25872584]
[1752134071179,0.98443116,671.89,671.38,3.25872584]
[1752134071379,0.98443116,671.88,671.38,3.25872584]
[1752134071577,0.98443116,671.87,671.39,1.66772584]
[1752134071778,0.98443116,671.89,671.39,1.66772584]
[1752134071977,0.98443116,671.88,671.39,1.66772584]
[1752134072177,0.98443116,671.87,671.39,1.66772584]
[1752134072376,0.98443116,671.89,671.39,1.66772584]
[1752134072678,0.98443116,671.88,671.39,1.66772584]
[1752134072882,0.98443116,671.87,671.39,1.66772584]
[1752134073079,0.98443116,671.89,671.39,1.66772584]
[1752134073280,0.98443116,671.88,671.39,1.66772584]
[1752134073484,0.98443116,671.87,671.39,1.66772584]
[1752134073684,0.98443116,671.86,671.39,1.66772584]
[1752134073878,0.98443116,671.89,671.39,1.66772584]
[1752134074084,0.98443116,671.88,671.39,1.66772584]
[1752134074286,0.98443116,671.87,671.39,1.66772584]
[1752134074481,0.98443116,671.86,671.39,1.66772584]
[1752134074680,0.25906157,671.95,671.38,1.591]
[1752134074681,2.65649536,671.89,671.4,1.66772584]
[1752134074980,0.98443116,671.88,671.4,1.66772584]
[1752134075179,0.98443116,671.87,671.4,1.66772584]
[1752134075381,0.98443116,671.86,671.4,1.66772584]
[1752134075582,0.98443116,671.88,671.4,1.66772584]
[1752134075785,0.98443116,671.87,671.4,1.66772584]
[1752134076086,0.98443116,671.86,671.4,1.66772584]
[1752134076285,0.98443116,671.85,671.4,1.66772584]
[1752134076586,0.98443116,671.88,671.4,1.66772584]